bitfinex-derivatives/quotes_ETHF0:USTF0_20250830
["timestamp","ask_amount","ask_price","bid_price","bid_amount"]
[1756542253405,0.1939,4393.7,4393.6,0.231]
[1756542253607,0.1939,4393.7,4393.5,3.2078]
[1756542253908,0.4929,4393.7,4393.6,0.231]
[1756542257508,3.2078,4394.2,4393.0,3.2078]
[1756542257710,0.4929,4393.6,4393.5,0.231]
[1756542264414,0.69520202,4393.6,4393.5,0.231]
[1756542266216,0.69520202,4393.6,4393.5,3.4388]
[1756542266515,0.69521524,4393.6,4393.5,3.4388]
[1756542268417,0.69521524,4393.6,4393.5,3.2078]
[1756542268716,0.69521524,4393.6,4393.5,3.4388]
[1756542270111,0.69525662,4393.6,4393.5,3.4388]
[1756542270717,0.4929,4393.6,4393.5,3.4388]
[1756542270917,0.69525446,4393.6,4393.5,3.4388]
[1756542279523,0.50135446,4393.6,4393.5,3.4388]
[1756542280521,0.299,4393.6,4393.5,3.4388]
[1756542280723,0.508321,4393.6,4393.5,3.4388]
[1756542281225,0.4902,4393.6,4393.5,3.4388]
[1756542281524,0.69954535,4393.6,4393.5,3.4388]
[1756542282926,0.69954535,4393.6,4393.5,3.21683851]
[1756542285927,0.69954535,4393.6,4393.5,2.98583851]
[1756542286325,0.69954535,4393.6,4393.5,3.21683851]
[1756542288230,0.69953844,4393.6,4393.5,3.21683851]
[1756542288522,0.69953844,4393.6,4393.5,3.44444851]
[1756542288523,0.20933844,4393.6,4393.5,3.44444851]
[1756542288715,0.20933844,4393.6,4393.5,2.98583851]
[1756542289028,0.2794,4393.8,4393.5,3.21683851]
[1756542289220,0.2794,4394.1,4393.5,3.21683851]
[1756542289420,0.4706,4394.1,4393.6,0.231]
[1756542290021,0.2794,4394.0,4393.5,3.2078]
[1756542290222,0.2093522,4393.9,4393.5,3.2078]
[1756542290424,0.2794,4393.8,4393.6,0.231]
[1756542290615,0.22758,4394.6,4393.6,0.231]
[1756542290616,0.2794,4394.5,4393.6,0.231]
[1756542291129,0.20935051,4394.4,4393.6,0.231]
[1756542291325,0.48875051,4394.3,4393.6,0.231]
[1756542291517,0.2794,4394.0,4393.6,0.231]
[1756542291829,0.20935051,4393.9,4393.6,0.231]
[1756542292030,0.20935051,4393.8,4393.6,0.231]
[1756542292221,0.20935051,4393.7,4393.6,0.231]
[1756542294933,0.4706,4394.1,4393.6,0.231]
[1756542295127,0.4706,4394.1,4394.0,3.2078]
[1756542295322,0.67967441,4394.1,4394.0,3.4388]
[1756542295526,0.4706,4394.1,4394.0,3.4388]
[1756542295827,0.67967441,4394.1,4394.0,3.4388]
[1756542296222,0.48847441,4394.1,4394.0,3.4388]
[1756542296428,0.20907441,4394.1,4394.0,3.4388]
[1756542298336,0.20907441,4394.1,4394.0,8.1296]
[1756542298833,0.20907441,4394.1,4394.0,12.1296]
[1756542299224,0.20907441,4394.1,4394.0,8.1296]
[1756542300233,0.2794,4394.8,4394.0,12.35717999]
[1756542300433,0.20600332,4394.7,4394.5,3.2078]
[1756542300732,0.2794,4395.0,4394.6,4.9218]
[1756542301834,0.2794,4395.8,4394.6,4.9218]
[1756542302136,0.4706,4395.4,4395.3,3.2078]
[1756542302432,0.4706,4395.4,4395.3,3.4388]
[1756542307239,3.2078,4395.9,4394.8,7.8986]
[1756542307443,0.2848,4394.3,4394.0,32.78]
[1756542307643,0.4831,4394.1,4394.0,32.78]
[1756542307836,0.4831,4394.1,4394.0,33.011]
[1756542309043,0.2848,4394.1,4394.0,33.011]
[1756542309242,0.2848,4395.3,4394.0,33.011]
[1756542309437,0.22755,4395.3,4394.0,33.011]
[1756542309740,0.22755,4395.2,4394.0,33.011]
[1756542309937,0.22755,4395.3,4394.0,33.011]
[1756542310327,3.2078,4395.4,4394.0,33.011]
[1756542310539,0.51235,4395.3,4394.0,33.011]
[1756542310834,3.2078,4395.4,4394.0,33.011]
[1756542311040,0.22755,4395.3,4394.0,33.011]
[1756542311239,0.22755,4395.2,4394.0,33.011]
[1756542311441,0.2848,4395.3,4394.0,33.011]
[1756542311637,0.22755,4395.3,4394.0,33.011]
[1756542311942,0.2848,4395.1,4394.0,33.011]
[1756542312140,0.22755,4395.3,4394.0,33.011]
[1756542312336,0.20437597,4395.2,4394.0,33.011]
[1756542312635,0.20437597,4395.1,4394.0,33.011]
[1756542312842,0.2848,4394.9,4394.0,33.011]
[1756542313040,0.2848,4394.7,4394.0,33.011]
[1756542313243,0.20437597,4394.6,4394.0,33.011]
[1756542313443,0.20437597,4394.5,4394.0,33.011]
[1756542313744,0.2848,4394.3,4394.0,33.011]
[1756542314044,0.20437597,4394.2,4394.0,33.011]
[1756542314243,0.20437597,4394.1,4394.0,33.011]
[1756542315144,0.20446054,4394.1,4394.0,33.011]
[1756542315339,0.20450208,4394.1,4394.0,33.011]
[1756542315945,0.20451839,4394.1,4394.0,33.011]
[1756542316444,0.48931839,4394.1,4394.0,32.78]
[1756542316741,0.48931839,4394.1,4394.0,33.011]
[1756542319552,0.48931839,4394.1,4394.0,0.231]
[1756542321057,0.68761839,4394.1,4394.0,0.231]
[1756542323862,0.20451839,4394.1,4394.0,0.231]
[1756542324651,0.48931839,4394.1,4394.0,0.231]
[1756542325761,0.48940661,4394.1,4394.0,0.231]
[1756542329266,0.48940661,4394.1,4393.9,4.6908]
[1756542329565,0.2848,4394.1,4394.0,0.231]
[1756542329862,0.48932993,4394.1,4394.0,0.231]
[1756542330064,0.68762993,4394.1,4394.0,0.231]
[1756542330766,0.48932993,4394.1,4394.0,0.231]
[1756542333756,0.20452993,4394.1,4394.0,0.231]
[1756542334758,0.48932993,4394.1,4394.0,0.231]
[1756542335164,0.20452993,4394.1,4394.0,4.9218]
[1756542336661,0.20468986,4394.1,4394.0,4.9218]
[1756542337064,0.2848,4394.4,4394.0,4.9218]
[1756542337272,0.2987,4394.2,4394.0,6.96838485]
[1756542337565,3.2078,4395.4,4394.1,3.2078]
[1756542337872,0.5003,4394.3,4394.2,0.23]
[1756542338067,0.50352449,4394.3,4394.2,4.9208]
[1756542339069,0.50352449,4394.3,4394.2,4.6908]
[1756542339267,0.20482449,4394.3,4394.2,4.9208]
[1756542340267,0.20587105,4394.3,4394.2,4.9208]
[1756542340467,0.70617105,4394.3,4394.2,4.9208]
[1756542340676,0.50457105,4394.3,4394.2,4.9208]
[1756542342072,0.20587105,4394.3,4394.2,4.9208]
[1756542343271,0.20587105,4394.3,4394.2,6.96738485]
[1756542343870,0.70617105,4394.3,4394.2,6.96738485]
[1756542344072,0.70617105,4394.3,4394.2,4.9208]
[1756542347279,0.70601786,4394.3,4394.2,4.9208]
[1756542354483,0.70601934,4394.3,4394.2,4.9208]
[1756542355085,4.93358934,4394.3,4394.2,4.6908]
[1756542355277,4.93358934,4394.3,4394.2,4.69886255]
[1756542355478,4.70601934,4394.3,4394.2,4.69886255]
[1756542358083,4.70590109,4394.3,4394.2,4.69886255]
[1756542358885,4.70587305,4394.3,4394.2,0.23]
[1756542359182,0.70587305,4394.3,4394.2,0.23]
[1756542361386,4.40717305,4394.3,4394.1,3.2078]
[1756542361587,0.70587305,4394.2,4394.1,3.2078]
[1756542361988,0.70587305,4394.2,4394.1,3.4378]
[1756542363085,0.70587305,4394.2,4394.1,3.2078]
[1756542363292,0.70587305,4394.2,4394.1,3.4378]
[1756542367089,0.70587305,4394.2,4394.1,3.2078]
[1756542367391,0.5003,4394.2,4394.1,3.4378]
[1756542367592,0.70569448,4394.2,4394.1,3.4378]
[1756542369693,0.20539448,4394.2,4394.1,3.4378]
[1756542371996,0.48549448,4394.2,4393.6,3.2078]
[1756542372189,0.1966,4393.7,4393.6,3.2078]
[1756542372391,0.68209448,4393.7,4393.6,3.4378]
[1756542372688,0.68155958,4393.7,4393.6,3.4378]
[1756542377099,0.68155958,4393.7,4393.6,3.2078]
[1756542377300,0.68155958,4393.7,4393.6,3.4378]
[1756542377601,0.68155958,4393.7,4393.6,3.2078]
[1756542377993,0.4767,4393.7,4393.6,3.4378]
[1756542378189,0.68165225,4393.7,4393.6,3.4378]
[1756542386506,0.2801,4393.6,4393.1,3.2078]
[1756542386807,0.4767,4393.2,4393.1,3.2078]
[1756542387003,0.68165225,4393.2,4393.1,3.2078]
[1756542387502,0.68165225,4393.2,4393.1,2.98580399]
[1756542387699,0.68165225,4393.2,4393.1,0.23]
[1756542387904,0.40155225,4393.2,4392.6,3.2078]
[1756542388106,0.4767,4392.7,4392.6,3.2078]
[1756542388300,0.68165225,4392.7,4392.6,3.4378]
[1756542388800,0.4767,4392.7,4392.6,3.4378]
[1756542389004,0.68167305,4392.7,4392.6,3.4378]
[1756542389605,0.20497305,4392.7,4392.6,3.4378]
[1756542391203,0.20497305,4392.7,4392.6,7.4378]
[1756542396301,0.20497305,4392.7,4392.6,7.2078]
[1756542396513,0.20497305,4392.7,4392.6,48.2378]
[1756542398015,0.20497305,4392.7,4392.6,76.7908]
[1756542398213,0.20497305,4392.7,4392.6,77.0208]
[1756542398614,0.20497305,4392.7,4392.6,79.06455474]
[1756542399314,0.20497305,4392.7,4392.6,77.0208]
[1756542399515,0.20486432,4392.7,4392.6,77.0208]
[1756542400218,0.3052,4393.5,4392.6,77.0208]
[1756542400418,0.20490344,4393.4,4392.7,2.04402537]
[1756542400619,0.20490344,4393.3,4392.8,0.23]
[1756542400821,0.20490344,4393.2,4392.8,0.23]
[1756542401022,0.20490344,4393.1,4392.8,0.23]
[1756542401215,0.20490344,4393.0,4392.8,0.23]
[1756542401412,0.4998,4393.5,4392.9,3.2078]
[1756542401623,0.3052,4393.3,4393.0,0.23]
[1756542401820,0.3052,4393.0,4392.9,3.2078]
[1756542402021,0.51014539,4393.0,4392.9,3.4378]
[1756542403421,0.51014539,4393.0,4392.9,3.2078]
[1756542403621,0.51014539,4393.0,4392.9,3.4378]
[1756542404825,0.20494539,4393.0,4392.9,3.4378]
[1756542406424,0.3052,4392.9,4392.7,2.04402537]
[1756542406725,0.4998,4392.5,4392.4,3.2078]
[1756542406922,0.70474539,4392.5,4392.4,3.4378]
[1756542407124,4.70474539,4392.5,4392.4,3.4378]
[1756542407327,0.70474539,4392.5,4392.4,3.4378]
[1756542408427,0.70474539,4392.5,4392.4,3.9199]
[1756542410125,0.70498833,4392.5,4392.4,3.9199]
[1756542410823,0.70492812,4392.5,4392.4,3.9199]
[1756542414229,0.70492812,4392.5,4392.4,3.6899]
[1756542414431,0.70492812,4392.5,4392.4,3.9199]
[1756542416930,0.70492812,4392.5,4392.4,3.6899]
[1756542417130,0.70492812,4392.5,4392.4,3.9199]
[1756542420739,0.4998,4392.5,4392.4,3.9199]
[1756542420933,0.70479859,4392.5,4392.4,3.9199]
[1756542421333,0.20499859,4392.5,4392.4,3.9199]
[1756542421728,0.20498763,4392.5,4392.4,3.9199]
[1756542422235,0.20498763,4392.5,4392.4,3.6899]
[1756542422436,0.20498763,4392.5,4392.4,3.9199]
[1756542430342,0.2821,4394.4,4392.5,0.0799]
[1756542430537,0.1914,4393.3,4393.2,3.3356]
[1756542430743,0.4735,4393.3,4393.2,3.6455]
[1756542433244,0.2821,4393.3,4393.2,3.6455]
[1756542434649,3.2078,4394.5,4393.3,0.0799]
[1756542434650,0.2821,4394.4,4393.3,0.0799]
[1756542434949,0.2821,4394.4,4393.5,0.0799]
[1756542435240,0.4735,4393.8,4393.7,0.2077]
[1756542435434,0.4735,4393.8,4393.7,0.4377]
[1756542437445,0.4735,4393.8,4393.7,3.6455]
[1756542438245,0.2821,4394.2,4393.7,3.6455]
[1756542438443,0.4735,4393.9,4393.8,0.4377]
[1756542441849,0.2821,4395.0,4394.3,0.128]
[1756542442145,0.4735,4395.0,4394.9,0.128]
[1756542442346,0.67641217,4395.0,4394.9,0.358]
[1756542442652,0.67641217,4395.0,4394.9,0.438]
[1756542442951,0.67641217,4395.0,4394.9,3.6458]
[1756542444751,0.67639016,4395.0,4394.9,3.6458]
[1756542447853,0.67639016,4395.0,4394.9,3.4158]
[1756542448150,0.6763425,4395.0,4394.9,3.5658]
[1756542448353,0.6763425,4395.0,4394.9,3.6458]
[1756542449954,0.6763425,4395.0,4394.9,3.4158]
[1756542450253,0.6763425,4395.0,4394.9,3.4378]
[1756542450649,0.6763425,4395.0,4394.9,3.5178]
[1756542450850,0.6763425,4395.0,4394.9,3.6458]
[1756542451554,0.4735,4395.0,4394.9,3.6458]
[1756542451758,0.67633094,4395.0,4394.9,3.6458]
[1756542451951,0.20283094,4395.0,4394.9,3.6458]
[1756542452553,0.48493094,4395.0,4394.9,3.6458]
[1756542452857,0.20283094,4395.0,4394.9,3.6458]
[1756542455046,0.20283094,4395.0,4394.9,7.6458]
[1756542455253,0.2821,4395.7,4395.6,0.128]
[1756542455453,0.2821,4395.7,4395.6,3.6458]
[1756542456156,0.2821,4396.5,4395.7,0.08]
[1756542456455,0.4735,4395.9,4395.8,0.208]
[1756542456655,0.4735,4395.9,4395.8,0.438]
[1756542459360,0.4735,4395.9,4395.8,0.208]
[1756542459561,0.4735,4395.9,4395.8,0.438]
[1756542462563,0.2821,4395.9,4395.8,0.438]
[1756542464152,0.3094,4396.5,4395.9,0.0796]
[1756542464352,0.3094,4396.5,4395.6,3.2078]
[1756542464353,0.2043,4396.2,4396.1,0.2069]
[1756542464558,0.5137,4396.2,4396.1,0.2069]
[1756542467165,0.71153257,4396.2,4396.1,0.2069]
[1756542467362,0.71153257,4396.2,4395.6,3.2078]
[1756542467667,0.5137,4395.2,4395.1,3.2078]
[1756542467867,0.71153257,4395.2,4395.1,3.4378]
[1756542469268,0.71153257,4395.2,4395.1,3.2078]
[1756542469562,0.71153257,4395.2,4395.1,0.23]
[1756542470465,0.71153257,4395.2,4395.1,3.6447]
[1756542470867,0.71153257,4395.2,4395.1,3.5651]
[1756542471061,0.5137,4395.2,4395.1,3.4378]
[1756542471367,0.71176491,4395.2,4395.1,3.6447]
[1756542471769,0.5137,4395.2,4395.1,3.6447]
[1756542472367,0.71182741,4395.2,4395.1,3.6447]
[1756542473059,0.71182741,4395.2,4395.1,3.5651]
[1756542473461,0.71185054,4395.2,4395.1,3.5651]
[1756542473668,0.71185306,4395.2,4395.1,3.4378]
[1756542474466,0.71185306,4395.2,4395.1,3.6447]
[1756542474863,0.19815306,4395.2,4395.1,3.6447]
[1756542477882,0.71185306,4395.2,4395.1,3.4147]
[1756542478072,0.71185306,4395.2,4395.1,3.6447]
[1756542480485,0.71185306,4395.2,4395.1,3.4378]
[1756542482186,0.5137,4395.2,4395.1,3.4378]
[1756542482485,0.71194334,4395.2,4395.1,3.4378]
[1756542482980,0.19824334,4395.2,4395.1,3.5651]
[1756542483186,0.19824334,4395.2,4395.1,3.6447]
[1756542489785,0.2928,4396.0,4395.1,3.5651]
[1756542489994,0.4841,4396.0,4395.9,3.2078]
[1756542490285,0.4841,4396.0,4395.9,3.4378]
[1756542492390,0.2928,4396.0,4395.9,3.4378]
[1756542492690,0.4841,4396.0,4395.9,3.4378]
[1756542494290,0.2928,4396.0,4395.9,3.4378]
[1756542494486,3.2078,4396.9,4395.9,3.4378]
[1756542494785,0.2928,4396.8,4395.9,3.4378]
[1756542494982,3.2078,4396.9,4395.9,3.4378]
[1756542495681,0.2928,4396.8,4395.9,3.4378]
[1756542495886,3.2078,4396.9,4395.9,3.4378]
[1756542496486,0.2928,4396.8,4395.9,3.4378]
[1756542496785,3.2078,4396.9,4395.9,3.4378]
[1756542496987,0.2928,4396.8,4396.4,3.2078]
[1756542497292,0.2928,4396.7,4396.5,0.23]
[1756542497993,0.2928,4397.3,4396.5,0.23]
[1756542498587,0.4841,4397.2,4397.1,3.2078]
[1756542498889,0.4841,4397.2,4397.1,3.4378]
[1756542499893,0.4841,4397.2,4397.1,0.23]
[1756542501881,0.67735338,4397.2,4397.1,0.23]
[1756542503687,0.67731033,4397.2,4397.1,0.23]
[1756542504290,0.38450549,4397.2,4396.9,3.2078]
[1756542504594,0.67730549,4397.1,4397.0,0.23]
[1756542506894,0.67730549,4397.1,4396.9,3.2078]
[1756542507195,0.67730549,4397.0,4396.9,3.2078]
[1756542507404,0.67730549,4397.0,4396.9,3.4378]
[1756542509198,0.48600549,4397.0,4396.9,3.4378]
[1756542509498,0.67730549,4397.0,4396.9,3.4378]
[1756542510394,0.67730549,4397.0,4396.9,3.2078]
[1756542510587,0.19320549,4397.0,4396.9,3.4378]
[1756542510993,0.48600549,4397.0,4396.9,3.4378]
[1756542511191,0.19320549,4397.0,4396.9,3.4378]
[1756542511899,0.67730549,4397.0,4396.9,3.4378]
[1756542512200,0.19320549,4397.0,4396.9,3.4378]
[1756542514198,0.1929821,4397.0,4396.9,3.4378]
[1756542516402,0.4857821,4397.0,4396.9,3.4378]
[1756542516599,0.6770821,4397.0,4396.9,3.4378]
[1756542516898,0.6770821,4397.0,4396.9,3.2078]
[1756542517101,0.3842821,4397.0,4396.9,0.23]
[1756542517299,0.6662821,4397.0,4396.9,0.23]
[1756542517900,0.3842821,4397.0,4396.4,3.2078]
[1756542518199,0.4801,4396.5,4396.4,3.2078]
[1756542518400,0.6730821,4396.5,4396.4,3.4378]
[1756542523505,0.4749821,4396.5,4396.4,3.4378]
[1756542524194,0.1929821,4396.5,4396.4,3.4378]
[1756542524597,0.4801,4396.5,4396.4,3.4378]
[1756542524803,0.67282853,4396.5,4396.4,3.4378]
[1756542525403,0.67282855,4396.5,4396.4,3.4378]
[1756542526706,0.67282855,4396.5,4396.4,3.2078]
[1756542526902,0.67282855,4396.5,4396.4,3.4378]
[1756542535510,0.68596356,4396.5,4396.4,3.4378]
[1756542535902,0.4801,4396.5,4396.4,3.4378]
[1756542536107,0.68596764,4396.5,4396.4,3.4378]
[1756542536815,0.20586764,4396.5,4396.4,3.4378]
[1756542537712,0.68596764,4396.5,4396.4,3.4378]
[1756542538199,0.68596764,4396.5,4396.4,3.2078]
[1756542538402,0.68596764,4396.5,4396.4,3.4378]
[1756542544919,0.68626155,4396.5,4396.4,3.4378]
[1756542545719,0.20616155,4396.5,4396.4,3.4378]
[1756542547623,0.20616155,4396.5,4396.4,3.2078]
[1756542547926,0.70016155,4396.5,4396.4,3.4378]
[1756542548233,0.70016155,4396.5,4396.4,3.2078]
[1756542548532,0.69028258,4396.5,4396.4,3.4378]
[1756542550234,0.50328258,4396.5,4396.4,3.4378]
[1756542551131,0.50328258,4396.5,4396.4,3.2078]
[1756542551332,0.69028258,4396.5,4396.4,3.4378]
[1756542555634,0.68476596,4396.5,4396.4,0.23]
[1756542555832,0.307,4396.4,4395.8,5.24936624]
[1756542556039,0.494,4395.9,4395.8,3.2078]
[1756542556238,0.68474073,4395.9,4395.8,3.4378]
[1756542560038,0.68474073,4395.9,4395.8,3.2078]
[1756542560238,0.68474073,4395.9,4395.8,3.4378]
[1756542563038,0.68474073,4395.9,4395.4,32.759]
[1756542563039,0.37774073,4395.9,4395.4,32.759]
[1756542563244,0.187,4395.6,4395.5,0.23]
[1756542563443,0.68474073,4395.6,4395.5,0.23]
[1756542566044,0.494,4395.6,4395.5,0.23]
[1756542566244,0.69779924,4395.6,4395.5,0.23]
[1756542566946,0.39079924,4395.6,4395.4,32.759]
[1756542567140,0.494,4395.6,4395.5,0.23]
[1756542567340,0.6977745,4395.6,4395.5,0.23]
[1756542569851,0.2037745,4395.6,4395.5,0.23]
[1756542570050,0.5107745,4395.6,4395.5,0.23]
[1756542570449,0.5107745,4395.6,4395.4,32.759]
[1756542570649,0.307,4395.6,4395.5,0.23]
[1756542570849,0.51074014,4395.6,4395.5,0.23]
[1756542571945,0.20374014,4395.6,4395.5,0.23]
[1756542572947,0.51074014,4395.6,4395.5,0.23]
[1756542573152,0.69774014,4395.6,4395.5,0.23]
[1756542573549,0.20374014,4395.6,4395.5,4.45749999]
[1756542574754,0.20374014,4395.6,4395.5,4.23]
[1756542575055,0.20374014,4395.6,4395.5,4.0]
[1756542575251,0.20374014,4395.6,4395.5,4.23]
[1756542575448,0.20374014,4395.6,4395.5,45.03]
[1756542575644,0.20374014,4395.6,4395.5,41.03]
[1756542575848,0.20374014,4395.6,4395.5,40.8]
[1756542576049,0.20374014,4395.6,4395.5,0.23]
[1756542576248,0.51074014,4395.6,4395.5,0.23]
[1756542576555,0.307,4395.6,4395.5,0.23]
[1756542576850,0.69764232,4395.6,4395.5,0.23]
[1756542577247,0.39064232,4395.6,4395.4,32.759]
[1756542577555,0.51014232,4395.5,4395.4,32.759]
[1756542577752,0.51014232,4395.5,4395.4,0.23]
[1756542577957,0.70544232,4395.5,4395.4,0.23]
[1756542581562,0.20364232,4395.5,4395.4,0.23]
[1756542586867,0.51014232,4395.5,4395.4,0.23]
[1756542588971,0.70544232,4395.5,4395.4,0.23]
[1756542590771,0.70544232,4395.5,4395.3,3.2078]
[1756542590974,0.70544232,4395.4,4395.3,3.2078]
[1756542591169,0.70544232,4395.4,4395.3,3.4378]
[1756542591570,0.70544232,4395.4,4395.3,3.2078]
[1756542591773,0.70544232,4395.4,4395.3,3.4378]
[1756542598178,0.70685852,4395.4,4395.3,3.4378]
[1756542598481,0.70685852,4395.4,4395.3,3.2078]
[1756542598686,0.70685852,4395.4,4395.3,3.4378]
[1756542598985,0.70686441,4395.4,4395.3,3.4378]
[1756542601081,0.70691623,4395.4,4395.3,3.4378]
[1756542602883,0.5018,4394.9,4394.8,3.2078]
[1756542603183,0.70691623,4394.9,4394.8,3.4378]
[1756542603978,0.70691623,4394.9,4394.8,0.23]
[1756542604785,0.70691623,4394.9,4394.8,3.4378]
[1756542605379,0.70691623,4394.9,4394.8,3.2078]
[1756542605581,0.70691623,4394.9,4394.7,32.765]
[1756542605779,0.51161623,4394.8,4394.7,32.765]
[1756542605979,0.51161623,4394.8,4394.7,32.995]
[1756542607084,0.20511623,4394.8,4394.7,32.995]
[1756542607484,0.20507045,4394.8,4394.7,32.995]
[1756542607690,0.2967,4396.5,4394.7,36.995]
[1756542607886,0.20507323,4396.4,4395.7,3.2078]
[1756542608181,1.21871971,4398.0,4396.2,3.2078]
[1756542608182,0.2967,4398.0,4396.2,3.2078]
[1756542608390,0.2967,4398.0,4395.8,0.63945]
[1756542608391,0.2967,4398.0,4397.1,3.2078]
[1756542608588,0.2967,4398.0,4397.2,0.23]
[1756542609478,0.1964,4397.3,4397.2,0.23]
[1756542609683,0.4931,4397.3,4397.2,0.23]
[1756542611080,0.1964,4396.7,4396.6,3.2078]
[1756542611283,0.4931,4396.7,4396.6,3.4378]
[1756542611488,0.4931,4396.7,4396.6,0.23]
[1756542611680,0.2967,4397.6,4396.6,3.4378]
[1756542611879,0.4931,4397.2,4397.1,3.2078]
[1756542612093,0.4931,4397.2,4397.1,3.4378]
[1756542612390,0.4931,4397.2,4397.1,0.23]
[1756542613891,0.24748419,4397.2,4397.1,0.23]
[1756542614092,0.44388419,4397.2,4397.1,0.23]
[1756542614286,0.44388419,4397.2,4396.6,3.2078]
[1756542614487,0.1964,4397.2,4396.7,0.23]
[1756542615284,0.1964,4397.2,4396.2,0.2458]
[1756542615595,0.1964,4396.4,4396.3,0.23]
[1756542615985,0.4931,4396.4,4396.3,0.23]
[1756542616888,0.2967,4396.1,4395.6,3.2078]
[1756542617091,0.4931,4395.7,4395.6,3.2078]
[1756542617392,0.4931,4395.7,4395.6,3.4378]
[1756542618388,0.4931,4395.7,4395.0,0.2458]
[1756542618585,0.4931,4395.7,4395.1,0.23]
[1756542618786,0.4931,4395.7,4395.1,0.4758]
[1756542618990,0.4931,4395.3,4395.2,0.4471]
[1756542619493,0.4931,4395.3,4395.2,0.6771]
[1756542620594,0.4931,4395.3,4395.2,0.4313]
[1756542620795,0.1964,4395.3,4394.9,3.2078]
[1756542620989,0.4931,4395.1,4395.0,0.23]
[1756542621189,0.4931,4395.1,4395.0,0.6777]
[1756542622190,0.4931,4395.1,4395.0,0.4477]
[1756542622495,0.4931,4395.1,4395.0,0.4313]
[1756542622696,0.4931,4395.1,4394.9,3.2078]
[1756542622895,0.4931,4395.0,4394.9,0.23]
[1756542623798,0.2967,4394.9,4394.3,3.2078]
[1756542623995,0.1964,4394.4,4394.3,3.2078]
[1756542624297,0.4931,4394.4,4394.3,3.2078]
[1756542624794,0.4931,4394.4,4394.3,3.4378]
[1756542626797,0.4931,4394.4,4394.3,3.2078]
[1756542626998,0.4931,4394.4,4394.3,3.4378]
[1756542627200,0.1964,4394.4,4393.8,3.2078]
[1756542627399,3.2078,4394.8,4393.8,3.2078]
[1756542627400,0.4931,4393.9,4393.8,3.2078]
[1756542627699,0.4931,4393.5,4393.4,0.4477]
[1756542627899,0.4931,4393.5,4393.4,0.6777]
[1756542629599,0.4931,4393.1,4393.0,3.4091]
[1756542629791,0.2967,4394.2,4393.0,3.6391]
[1756542629991,3.2078,4394.3,4393.0,3.6391]
[1756542630300,0.2967,4394.2,4393.1,0.2464]
[1756542630502,0.4931,4393.1,4393.0,3.2078]
[1756542630702,0.4931,4393.1,4393.0,3.4378]
[1756542631102,0.4931,4393.1,4393.0,3.8855]
[1756542631896,0.4931,4393.1,4393.0,3.6555]
[1756542632100,0.4931,4393.1,4393.0,3.8855]
[1756542633703,0.2967,4394.2,4393.1,0.2464]
[1756542633893,0.5243,4394.2,4393.2,0.23]
[1756542634099,0.4931,4393.3,4393.2,0.6777]
[1756542634499,0.2967,4394.2,4393.3,0.2464]
[1756542634704,0.2967,4394.2,4393.5,0.2464]
[1756542635100,0.4931,4394.2,4394.1,0.4477]
[1756542635703,0.2967,4394.7,4394.1,0.2013]
[1756542635900,0.4931,4394.7,4394.6,0.2013]
[1756542636101,0.4931,4394.7,4394.6,0.6227]
[1756542637902,0.4931,4394.7,4394.6,0.4477]
[1756542638606,0.4931,4394.7,4394.3,0.2458]
[1756542638805,0.1964,4394.7,4394.4,0.4758]
[1756542639004,0.2026,4394.5,4394.4,0.6643]
[1756542639205,0.507,4394.5,4394.4,0.6643]
[1756542641112,0.69984254,4394.5,4394.4,0.6643]
[1756542641512,0.69982514,4394.5,4394.4,0.6643]
[1756542648228,0.69982514,4394.5,4394.1,0.2458]
[1756542648427,0.507,4394.3,4394.2,0.6643]
[1756542648622,0.69982514,4394.3,4394.2,0.6643]
[1756542648928,0.19282514,4394.3,4394.2,0.6643]
[1756542650128,0.4981479,4394.3,4394.2,0.6643]
[1756542650629,0.7007479,4394.3,4394.2,0.6643]
[1756542651429,0.7007479,4394.3,4394.2,0.4185]
[1756542652121,0.7007479,4394.3,4393.5,0.2458]
[1756542652321,0.507,4393.6,4393.5,0.2458]
[1756542652528,0.7007479,4393.6,4393.5,0.6643]
[1756542653429,0.507,4393.6,4393.5,0.6643]
[1756542653624,0.70102746,4393.6,4393.5,0.6643]
[1756542656025,0.3044,4393.5,4393.2,3.4536]
[1756542656233,0.507,4393.3,4393.2,3.8721]
[1756542656426,0.70102746,4393.3,4393.2,3.8721]
[1756542658132,0.19402746,4393.3,4393.2,3.8721]
[1756542658833,0.19402746,4393.3,4393.2,0.6643]
[1756542659032,0.49842746,4393.3,4393.2,0.6643]
[1756542659632,0.70102746,4393.3,4393.2,0.6643]
[1756542660533,0.70102746,4393.3,4393.2,3.8721]
[1756542660729,0.19395368,4393.3,4393.2,3.8721]
[1756542661131,0.19395368,4393.3,4393.2,8.09972]
[1756542661333,0.3044,4395.0,4393.3,0.0519]
[1756542661533,3.2078,4395.1,4394.0,3.2078]
[1756542661836,0.85746552,4395.0,4394.2,0.0519]
[1756542662134,0.53197,4395.0,4394.2,0.0519]
[1756542662532,0.507,4394.3,4394.2,0.1349]
[1756542662729,0.507,4394.2,4394.1,0.23]
[1756542663123,0.507,4394.2,4393.5,0.0519]
[1756542663330,0.507,4394.2,4393.4,3.2078]
[1756542663631,0.3044,4393.4,4393.2,0.0519]
[1756542663831,0.507,4393.3,4393.2,0.1349]
[1756542664138,0.507,4393.3,4393.2,0.313]
[1756542664443,0.507,4393.3,4393.2,0.23]
[1756542664938,0.507,4393.3,4393.2,0.313]
[1756542665236,0.507,4393.3,4393.2,0.3649]
[1756542666036,3.2078,4394.1,4393.2,0.3649]
[1756542666335,0.3044,4393.6,4393.5,0.1349]
[1756542666532,0.507,4393.6,4393.5,0.083]
[1756542666735,0.507,4393.6,4393.5,0.1349]